fUST/lending_fUST_20250809
["ID","MTS","AMOUNT","RATE_DAILY","PERIOD"]
[378144368,1754747448152,-460.0,0.00022465,2]
[378144369,1754747448161,-750.06,0.00022465,2]
[378144370,1754747448171,-460.0,0.00022465,2]
[378144371,1754747448180,-1574.57,0.00022465,2]
[378144372,1754747448190,-164.63,0.00022465,2]
[378144373,1754747448199,-460.0,0.00022465,2]
[378144374,1754747448208,-997.08,0.00022465,2]
[378144375,1754747448218,-460.0,0.00022465,2]
[378144376,1754747448227,-460.0,0.00022465,2]
[378144377,1754747448236,-460.0,0.00022465,2]
[378144378,1754747448245,-460.0,0.00022465,2]
[378144379,1754747448254,-460.0,0.00022465,2]
[378144380,1754747448264,-460.0,0.00022465,2]
[378144381,1754747448274,-460.0,0.00022465,2]
[378144382,1754747448284,-460.0,0.00022465,2]
[378144383,1754747448294,-151.0,0.00022465,7]
[378144384,1754747448304,-460.0,0.00022465,2]
[378144385,1754747448313,-460.0,0.00022465,2]
[378144386,1754747448322,-460.0,0.00022465,2]
[378144387,1754747448332,-322.3139192,0.00022465,2]
[378144388,1754747448341,-464.07737173,0.00022465,2]
[378144389,1754747448351,-460.0,0.00022465,2]
[378144390,1754747448360,-460.0,0.00022465,2]
[378144391,1754747448370,-151.0,0.00022465,7]
[378144392,1754747448379,-460.0,0.00022465,2]
[378144393,1754747448389,-460.0,0.00022465,2]
[378144394,1754747448399,-460.0,0.00022465,2]
[378144395,1754747448408,-460.0,0.00022465,2]
[378144396,1754747448417,-151.0,0.00022465,7]
[378144397,1754747448426,-460.0,0.00022465,2]
[378144398,1754747448436,-460.0,0.00022465,2]
[378144399,1754747448445,-465.2941641,0.00022465,2]
[378144400,1754747448455,-460.0,0.00022465,2]
[378144401,1754747448465,-460.0,0.00022465,2]
[378144402,1754747448475,-1937.41,0.00022465,2]
[378144403,1754747448484,-151.0,0.00022465,7]
[378144404,1754747448493,-460.0,0.00022465,2]
[378144405,1754747448503,-405.49522147,0.00022465,2]
[378144406,1754747448513,-460.0,0.00022465,2]
[378144407,1754747448523,-460.0,0.00022465,2]
[378144408,1754747448532,-460.0,0.00022465,2]
[378144409,1754747448544,-151.0,0.00022465,7]
[378144410,1754747448554,-460.0,0.00022465,2]
[378144411,1754747448564,-460.0,0.00022465,2]
[378144412,1754747448574,-1416.98,0.00022465,2]
[378144413,1754747448585,-460.0,0.00022465,2]
[378144414,1754747448595,-460.0,0.00022465,2]
[378144415,1754747448604,-460.0,0.00022465,2]
[378144416,1754747448614,-1425.64,0.00022465,2]
[378144417,1754747448624,-460.0,0.00022465,2]
[378144418,1754747448635,-460.0,0.00022465,2]
[378144419,1754747448644,-460.0,0.00022465,2]
[378144420,1754747448654,-460.0,0.00022465,2]
[378144421,1754747448664,-460.0,0.00022465,2]
[378144422,1754747448674,-282.17567134,0.00022465,2]
[378144423,1754747448685,-713.03,0.00022465,2]
[378144424,1754747448694,-460.0,0.00022465,2]
[378144425,1754747448704,-314.33880988,0.00022465,2]
[378144426,1754747448714,-501.07347936,0.00022465,2]
[378144427,1754747448723,-460.0,0.00022465,2]
[378144428,1754747448733,-623.12,0.00022465,2]
[378144429,1754747448743,-509.89,0.00022465,2]
[378144430,1754747448752,-4434.69,0.00022465,2]
[378144431,1754747448762,-460.0,0.00022465,2]
[378144432,1754747448772,-606.24,0.00022465,2]
[378144433,1754747448782,-460.0,0.00022465,2]
[378144434,1754747448792,-473.244843,0.00022465,2]
[378144435,1754747448801,-460.0,0.00022465,2]
[378144436,1754747448812,-519.3,0.00022465,2]
[378144437,1754747448822,-505.04,0.00022465,2]
[378144438,1754747448832,-460.0,0.00022465,2]
[378144439,1754747448842,-242.9527781,0.00022465,2]
[378144440,1754747448851,-460.0,0.00022465,2]
[378144441,1754747448861,-460.0,0.00022465,2]
[378144442,1754747448872,-460.0,0.00022465,2]
[378144443,1754747448882,-460.0,0.00022465,2]
[378144444,1754747448892,-460.0,0.00022465,2]
[378144445,1754747448901,-460.0,0.00022465,2]
[378144446,1754747448911,-460.0,0.00022465,2]
[378144447,1754747448921,-460.0,0.00022465,2]
[378144448,1754747448931,-460.0,0.00022465,2]
[378144449,1754747448941,-474.78117092,0.00022465,2]
[378144450,1754747448950,-831.04,0.00022465,2]
[378144451,1754747448960,-460.0,0.00022465,2]
[378144452,1754747448969,-460.0,0.00022465,2]
[378144453,1754747448978,-460.0,0.00022465,2]
[378144454,1754747448988,-460.0,0.00022465,2]
[378144455,1754747448997,-759.18,0.00022465,2]
[378144456,1754747449007,-1151.85,0.00022465,2]
[378144457,1754747449017,-485.21,0.00022465,2]
[378144458,1754747449027,-462.56990268,0.00022465,2]
[378144459,1754747449036,-460.0,0.00022465,2]
[378144460,1754747449045,-596.04,0.00022465,2]
[378144461,1754747449055,-460.0,0.00022465,2]
[378144462,1754747449064,-1378.28,0.00022465,2]
[378144463,1754747449074,-460.0,0.00022465,2]
[378144464,1754747449083,-151.731813,0.00022465,7]
[378144465,1754747449093,-460.0,0.00022465,2]
[378144466,1754747449102,-460.0,0.00022465,2]
[378144467,1754747449112,-463.56752237,0.00022465,2]
[378144468,1754747449122,-460.0,0.00022465,2]
[378144469,1754747449131,-1165.64,0.00022465,2]
[378144470,1754747449140,-765.33,0.00022465,2]
[378144471,1754747449149,-460.0,0.00022465,2]
[378144472,1754747449159,-214.79111598,0.00022465,2]
[378144473,1754747449168,-460.0,0.00022465,2]
[378144474,1754747449178,-460.0,0.00022465,2]
[378144475,1754747449187,-460.0,0.00022465,2]
[378144476,1754747449197,-466.66036735,0.00022465,2]
[378144477,1754747449206,-460.0,0.00022465,2]
[378144478,1754747449217,-460.0,0.00022465,2]
[378144479,1754747449226,-460.0,0.00022465,2]
[378144480,1754747449235,-460.0,0.00022465,2]
[378144481,1754747449245,-470.67233647,0.00022465,2]
[378144482,1754747449254,-460.0,0.00022465,2]
[378144483,1754747449263,-394.89674894,0.00022465,2]
[378144484,1754747449273,-460.0,0.00022465,2]
[378144485,1754747449282,-1113.5,0.00022465,2]
[378144486,1754747449291,-460.0,0.00022465,2]
[378144487,1754747449300,-460.0,0.00022465,2]
[378144488,1754747449311,-452.60459102,0.00022465,2]
[378144489,1754747449320,-575.37,0.00022465,2]
[378144490,1754747449329,-460.0,0.00022465,2]
[378144491,1754747449338,-460.0,0.00022465,2]
[378144492,1754747449347,-2401.29,0.00022465,2]
[378144493,1754747449356,-460.0,0.00022465,2]
[378144494,1754747449366,-460.0,0.00022465,2]
[378144495,1754747449375,-460.0,0.00022465,2]
[378144496,1754747449384,-460.0,0.00022465,2]
[378144497,1754747449393,-1070.9,0.00022465,2]
[378144498,1754747449402,-460.0,0.00022465,2]
[378144499,1754747449411,-460.0,0.00022465,2]
[378144500,1754747449420,-460.0,0.00022465,2]
[378144501,1754747449429,-446.20193772,0.00022465,2]
[378144502,1754747449438,-288.2804357,0.00022465,2]
[378144503,1754747449447,-251.31249488,0.00022465,2]
[378144504,1754747449456,-600.0,0.00022473,2]
[378144505,1754747449465,-500.0,0.00022473,2]
[378144506,1754747449475,-1000.0,0.000225,2]
[378144507,1754747449484,-1000.0,0.00022521,2]
[378144508,1754747449494,-500.0,0.00022521,2]
[378144509,1754747449503,-1000.0,0.00022521,2]
[378144510,1754747449512,-160.0,0.00022575,2]
[378144511,1754747449521,-160.0,0.00022575,2]
[378144512,1754747449531,-160.0,0.00022575,2]
[378144513,1754747449543,-160.0,0.00022577,2]
[378144514,1754747449552,-12666.14847857,0.00022577,2]
[378144515,1754747449561,-312.16666667,0.00022577,2]
[378144516,1754747449570,-842.95011917,0.00022577,2]
[378144517,1754747449579,-160.0,0.00022577,2]
[378144518,1754747449589,-231.92402426,0.00022577,2]
[378144519,1754747449598,-160.0,0.00022577,2]
[378144520,1754747449607,-160.0,0.00022577,2]
[378144521,1754747449617,-527.77735381,0.00022577,2]
[378144522,1754747449626,-461.55179734,0.00022577,2]
[378144523,1754747449635,-216.61183532,0.00022577,2]
[378144524,1754747449645,-215.40758176,0.00022577,2]
[378144525,1754747449654,-151.0,0.00022613,7]
[378144526,1754747449664,-500.0,0.00022638,2]
[378144527,1754747449673,-151.0,0.00022739,7]
[378144528,1754747449682,-606.73903117,0.00022739,2]
[378144529,1754747449691,-460.0,0.00022739,2]
[378144530,1754747449700,-460.0,0.00022739,2]
[378144531,1754747449710,-460.0,0.00022739,2]
[378144532,1754747449720,-460.0,0.00022739,2]
[378144533,1754747449730,-586.82,0.00022739,2]
[378144534,1754747449739,-460.0,0.00022739,2]
[378144535,1754747449748,-332.9916298,0.00022739,2]
[378144536,1754747449757,-677.9,0.00022739,2]
[378144537,1754747449767,-460.0,0.00022739,2]
[378144538,1754747449776,-460.0,0.00022739,2]
[378144539,1754747449786,-321.22642093,0.00022739,2]
[378144540,1754747449796,-151.742876,0.00022739,7]
[378144541,1754747449806,-460.0,0.00022739,2]
[378144542,1754747449815,-460.0,0.00022739,2]
[378144543,1754747449824,-460.0,0.00022739,2]
[378144544,1754747449834,-151.0,0.00022739,7]
[378144545,1754747449843,-460.0,0.00022739,2]
[378144546,1754747449853,-460.0,0.00022739,2]
[378144547,1754747449862,-460.0,0.00022739,2]
[378144548,1754747449872,-460.0,0.00022739,2]
[378144549,1754747449881,-590.99528492,0.00022739,2]
[378144550,1754747449891,-460.0,0.00022739,2]
[378144551,1754747449901,-460.0,0.00022739,2]
[378144552,1754747449910,-460.0,0.00022739,2]
[378144553,1754747449919,-151.0,0.00022739,7]
[378144554,1754747449929,-460.0,0.00022739,2]
[378144555,1754747449938,-460.0,0.00022739,2]
[378144556,1754747449947,-460.0,0.00022739,2]
[378144557,1754747449957,-460.0,0.00022739,2]
[378144558,1754747449967,-460.0,0.00022739,2]
[378144559,1754747450090,-460.0,0.00022739,2]
[378144560,1754747450100,-460.0,0.00022739,2]
[378144561,1754747450109,-460.0,0.00022739,2]
[378144562,1754747450119,-460.0,0.00022739,2]
[378144563,1754747450128,-460.0,0.00022739,2]
[378144564,1754747450137,-460.0,0.00022739,2]
[378144565,1754747450147,-460.0,0.00022739,2]
[378144566,1754747450156,-460.0,0.00022739,2]
[378144567,1754747450165,-460.0,0.00022739,2]
[378144568,1754747450180,-460.0,0.00022739,2]
[378144569,1754747450195,-460.0,0.00022739,2]
[378144570,1754747450205,-460.0,0.00022739,2]
[378144571,1754747450215,-460.0,0.00022739,2]
[378144572,1754747450226,-460.0,0.00022739,2]
[378144573,1754747450236,-460.0,0.00022739,2]
[378144574,1754747450246,-460.0,0.00022739,2]
[378144575,1754747450256,-460.0,0.00022739,2]
[378144576,1754747450266,-460.0,0.00022739,2]
[378144577,1754747450276,-151.66253,0.00022739,7]
[378144578,1754747450286,-151.66253,0.00022739,7]
[378144579,1754747450296,-460.0,0.00022739,2]
[378144580,1754747450305,-564.93,0.00022739,2]
[378144581,1754747450315,-460.0,0.00022739,2]
[378144582,1754747450326,-460.0,0.00022739,2]
[378144583,1754747450336,-460.0,0.00022739,2]
[378144584,1754747450346,-460.0,0.00022739,2]
[378144585,1754747450356,-460.0,0.00022739,2]
[378144586,1754747450366,-460.0,0.00022739,2]
[378144587,1754747450376,-460.0,0.00022739,2]
[378144588,1754747450385,-460.0,0.00022739,2]
[378144589,1754747450395,-251.863743,0.00022739,7]
[378144590,1754747450405,-251.863743,0.00022739,7]
[378144591,1754747450415,-460.0,0.00022739,2]
[378144592,1754747450426,-460.0,0.00022739,2]
[378144593,1754747450436,-460.0,0.00022739,2]
[378144594,1754747450445,-151.0,0.00022739,7]
[378144595,1754747450455,-460.0,0.00022739,2]
[378144596,1754747450464,-460.0,0.00022739,2]
[378144597,1754747450474,-460.0,0.00022739,2]
[378144598,1754747450484,-460.0,0.00022739,2]
[378144599,1754747450494,-460.0,0.00022739,2]
[378144600,1754747450504,-460.0,0.00022739,2]
[378144601,1754747450514,-460.0,0.00022739,2]
[378144602,1754747450523,-701.21,0.00022739,2]
[378144603,1754747450534,-1334.37,0.00022739,2]
[378144604,1754747450546,-1452.35,0.00022739,2]
[378144605,1754747450556,-803.76,0.00022739,2]
[378144606,1754747450566,-240.04217954,0.00022739,2]
[378144607,1754747450575,-460.0,0.00022739,2]
[378144608,1754747450586,-750.06,0.00022739,2]
[378144609,1754747450596,-460.0,0.00022739,2]
[378144610,1754747450606,-1574.57,0.00022739,2]
[378144611,1754747450618,-997.08,0.00022739,2]
[378144612,1754747450628,-466.2050307,0.00022739,2]
[378144613,1754747450638,-460.0,0.00022739,2]
[378144614,1754747450648,-460.0,0.00022739,2]
[378144615,1754747450658,-460.0,0.00022739,2]
[378144616,1754747450668,-460.0,0.00022739,2]
[378144617,1754747450679,-460.0,0.00022739,2]
[378144618,1754747450689,-578.12163147,0.00022739,2]
[378144619,1754747450698,-460.0,0.00022739,2]
[378144620,1754747450708,-460.0,0.00022739,2]
[378144621,1754747450719,-460.0,0.00022739,2]
[378144622,1754747450729,-460.0,0.00022739,2]
[378144623,1754747450739,-460.0,0.00022739,2]
[378144624,1754747450749,-460.0,0.00022739,2]
[378144625,1754747450758,-477.25206601,0.00022739,2]
[378144626,1754747450768,-460.0,0.00022739,2]
[378144627,1754747450778,-460.0,0.00022739,2]
[378144628,1754747450787,-460.0,0.00022739,2]
[378144629,1754747450796,-288.856446,0.00022739,7]
[378144630,1754747450807,-1937.41,0.00022739,2]
[378144631,1754747450816,-460.0,0.00022739,2]
[378144632,1754747450827,-151.0,0.00022739,7]
[378144633,1754747450837,-288.856446,0.00022739,7]
[378144634,1754747450847,-460.0,0.00022739,2]
[378144635,1754747450856,-235.08633968,0.00022739,2]
[378144636,1754747450866,-463.91005693,0.00022739,2]
[378144637,1754747450875,-460.0,0.00022739,2]
[378144638,1754747450885,-460.0,0.00022739,2]
[378144639,1754747450895,-1416.98,0.00022739,2]
[378144640,1754747450905,-466.54363822,0.00022739,2]
[378144641,1754747450915,-460.0,0.00022739,2]
[378144642,1754747450925,-1425.64,0.00022739,2]
[378144643,1754747450935,-460.0,0.00022739,2]
[378144644,1754747450944,-460.0,0.00022739,2]
[378144645,1754747450954,-460.0,0.00022739,2]
[378144646,1754747450963,-460.0,0.00022739,2]
[378144647,1754747450972,-460.0,0.00022739,2]
[378144648,1754747450982,-460.0,0.00022739,2]
[378144649,1754747450991,-713.03,0.00022739,2]
[378144650,1754747451000,-460.0,0.00022739,2]
[378144651,1754747451009,-460.0,0.00022739,2]
[378144652,1754747451019,-623.12,0.00022739,2]
[378144653,1754747451028,-4434.69,0.00022739,2]
[378144654,1754747451038,-460.0,0.00022739,2]
[378144655,1754747451048,-606.24,0.00022739,2]
[378144656,1754747451058,-460.0,0.00022739,2]
[378144657,1754747451067,-460.0,0.00022739,2]
[378144658,1754747451077,-519.3,0.00022739,2]
[378144659,1754747451086,-505.04,0.00022739,2]
[378144660,1754747451096,-460.0,0.00022739,2]
[378144661,1754747451105,-460.0,0.00022739,2]
[378144662,1754747451115,-460.0,0.00022739,2]
[378144663,1754747451124,-460.0,0.00022739,2]
[378144664,1754747451133,-460.0,0.00022739,2]
[378144665,1754747451143,-460.0,0.00022739,2]
[378144666,1754747451152,-460.0,0.00022739,2]
[378144667,1754747451162,-460.0,0.00022739,2]
[378144668,1754747451172,-460.0,0.00022739,2]
[378144669,1754747451181,-460.0,0.00022739,2]
[378144670,1754747451191,-831.04,0.00022739,2]
[378144671,1754747451200,-460.0,0.00022739,2]
[378144672,1754747451209,-461.53,0.00022739,2]
[378144673,1754747451219,-465.40132314,0.00022739,2]
[378144674,1754747451229,-460.0,0.00022739,2]
[378144675,1754747451238,-759.18,0.00022739,2]
[378144676,1754747451247,-1151.85,0.00022739,2]
[378144677,1754747451256,-485.21,0.00022739,2]
[378144678,1754747451266,-460.0,0.00022739,2]
[378144679,1754747451275,-596.04,0.00022739,2]
[378144680,1754747451284,-460.0,0.00022739,2]
[378144681,1754747451294,-1378.28,0.00022739,2]
[378144682,1754747451304,-460.0,0.00022739,2]
[378144683,1754747451313,-460.0,0.00022739,2]
[378144684,1754747451323,-324.62236031,0.00022739,2]
[378144685,1754747451332,-1165.64,0.00022739,2]
[378144686,1754747451341,-765.33,0.00022739,2]
[378144687,1754747451351,-460.0,0.00022739,2]
[378144688,1754747451360,-460.0,0.00022739,2]
[378144689,1754747451369,-460.0,0.00022739,2]
[378144690,1754747451379,-460.0,0.00022739,2]
[378144691,1754747451388,-460.0,0.00022739,2]
[378144692,1754747451398,-460.0,0.00022739,2]
[378144693,1754747451407,-473.23326017,0.00022739,2]
[378144694,1754747451416,-460.0,0.00022739,2]
[378144695,1754747451426,-1113.5,0.00022739,2]
[378144696,1754747451435,-460.0,0.00022739,2]
[378144697,1754747451445,-460.0,0.00022739,2]
[378144698,1754747451454,-575.37,0.00022739,2]
[378144699,1754747451464,-460.0,0.00022739,2]
[378144700,1754747451473,-2401.29,0.00022739,2]
[378144701,1754747451488,-460.0,0.00022739,2]
[378144702,1754747451498,-460.0,0.00022739,2]
[378144703,1754747451507,-301.90443911,0.00022739,2]
[378144704,1754747451516,-501.01,0.00022739,2]
[378144705,1754747451526,-1070.9,0.00022739,2]
[378144706,1754747451536,-460.0,0.00022739,2]
[378144707,1754747451547,-460.0,0.00022739,2]
[378144708,1754747451556,-488.50395581,0.00022739,2]
[378144709,1754747451566,-500.0,0.00022968,2]
[378144710,1754747451575,-1028.95677806,0.00022968,2]
[378144711,1754747451585,-160.0,0.00023,2]
[378144712,1754747451594,-198.90769,0.00023013,7]
[378144713,1754747451603,-198.90769,0.00023013,7]
[378144714,1754747451612,-151.0,0.00023013,7]
[378144715,1754747451622,-151.0,0.00023013,7]
[378144716,1754747451632,-460.0,0.00023013,2]
[378144717,1754747451641,-460.0,0.00023013,2]
[378144718,1754747451651,-460.0,0.00023013,2]
[378144719,1754747451660,-586.82,0.00023013,2]
[378144720,1754747451670,-257.60219491,0.00023013,2]
[378144721,1754747451679,-677.9,0.00023013,2]
[378144722,1754747451688,-460.0,0.00023013,2]
[378144723,1754747451698,-460.0,0.00023013,2]
[378144724,1754747451708,-151.0,0.00023013,7]
[378144725,1754747451717,-460.0,0.00023013,2]
[378144726,1754747451727,-460.0,0.00023013,2]
[378144727,1754747451736,-477.3729841,0.00023013,2]
[378144728,1754747451746,-225.82892987,0.00023013,2]
[378144729,1754747451756,-460.0,0.00023013,2]
[378144730,1754747451765,-460.0,0.00023013,2]
[378144731,1754747451775,-460.0,0.00023013,2]
[378144732,1754747451785,-423.566582,0.00023013,7]
[378144733,1754747451794,-423.566582,0.00023013,7]
[378144734,1754747451804,-460.0,0.00023013,2]
[378144735,1754747451814,-460.0,0.00023013,2]
[378144736,1754747451824,-460.0,0.00023013,2]
[378144737,1754747451834,-460.0,0.00023013,2]
[378144738,1754747451843,-460.0,0.00023013,2]
[378144739,1754747451853,-460.0,0.00023013,2]
[378144740,1754747451863,-460.0,0.00023013,2]
[378144741,1754747451872,-460.0,0.00023013,2]
[378144742,1754747451881,-460.0,0.00023013,2]
[378144743,1754747451891,-460.0,0.00023013,2]
[378144744,1754747451901,-460.0,0.00023013,2]
[378144745,1754747451910,-460.0,0.00023013,2]
[378144746,1754747451919,-460.0,0.00023013,2]
[378144747,1754747451929,-460.0,0.00023013,2]
[378144748,1754747451938,-396.29942411,0.00023013,2]
[378144749,1754747451947,-460.0,0.00023013,2]
[378144750,1754747451957,-460.0,0.00023013,2]
[378144751,1754747451966,-460.0,0.00023013,2]
[378144752,1754747451975,-460.0,0.00023013,2]
[378144753,1754747451986,-460.0,0.00023013,2]
[378144754,1754747451996,-460.0,0.00023013,2]
[378144755,1754747452006,-564.93,0.00023013,2]
[378144756,1754747452016,-460.0,0.00023013,2]
[378144757,1754747452026,-460.0,0.00023013,2]
[378144758,1754747452035,-151.0,0.00023013,7]
[378144759,1754747452045,-460.0,0.00023013,2]
[378144760,1754747452053,-460.0,0.00023013,2]
[378144761,1754747452062,-151.0,0.00023013,7]
[378144762,1754747452071,-460.0,0.00023013,2]
[378144763,1754747452081,-460.0,0.00023013,2]
[378144764,1754747452090,-460.0,0.00023013,2]
[378144765,1754747452101,-460.0,0.00023013,2]
[378144766,1754747452110,-151.0,0.00023013,7]
[378144767,1754747452121,-460.0,0.00023013,2]
[378144768,1754747452136,-460.0,0.00023013,2]
[378144769,1754747452146,-460.0,0.00023013,2]
[378144770,1754747452155,-367.02677627,0.00023013,2]
[378144771,1754747452165,-498.33,0.00023013,2]
[378144772,1754747452175,-701.21,0.00023013,2]
[378144773,1754747452184,-1334.37,0.00023013,2]
[378144774,1754747452194,-1452.35,0.00023013,2]
[378144775,1754747452203,-803.76,0.00023013,2]
[378144776,1754747452213,-460.0,0.00023013,2]
[378144777,1754747452224,-750.06,0.00023013,2]
[378144778,1754747452234,-460.0,0.00023013,2]
[378144779,1754747452243,-1574.57,0.00023013,2]
[378144780,1754747452254,-997.08,0.00023013,2]
[378144781,1754747452265,-460.0,0.00023013,2]
[378144782,1754747452274,-460.0,0.00023013,2]
[378144783,1754747452284,-151.0,0.00023013,7]
[378144784,1754747452293,-460.0,0.00023013,2]
[378144785,1754747452302,-460.0,0.00023013,2]
[378144786,1754747452312,-460.0,0.00023013,2]
[378144787,1754747452321,-460.0,0.00023013,2]
[378144788,1754747452330,-460.0,0.00023013,2]
[378144789,1754747452340,-151.0,0.00023013,7]
[378144790,1754747452350,-460.0,0.00023013,2]
[378144791,1754747452360,-151.0,0.00023013,7]
[378144792,1754747452369,-476.83307238,0.00023013,2]
[378144793,1754747452379,-460.0,0.00023013,2]
[378144794,1754747452387,-1937.41,0.00023013,2]
[378144795,1754747452396,-460.0,0.00023013,2]
[378144796,1754747452406,-460.0,0.00023013,2]
[378144797,1754747452415,-460.0,0.00023013,2]
[378144798,1754747452426,-151.0,0.00023013,7]
[378144799,1754747452436,-435.95517016,0.00023013,2]
[378144800,1754747452448,-1416.98,0.00023013,2]
[378144801,1754747452458,-460.0,0.00023013,2]
[378144802,1754747452467,-1425.64,0.00023013,2]
[378144803,1754747452476,-460.0,0.00023013,2]
[378144804,1754747452486,-460.0,0.00023013,2]
[378144805,1754747452495,-460.0,0.00023013,2]
[378144806,1754747452505,-467.69078397,0.00023013,2]
[378144807,1754747452515,-460.0,0.00023013,2]
[378144808,1754747452524,-713.03,0.00023013,2]
[378144809,1754747452534,-460.0,0.00023013,2]
[378144810,1754747452547,-460.0,0.00023013,2]
[378144811,1754747452557,-623.12,0.00023013,2]
[378144812,1754747452566,-4434.69,0.00023013,2]
[378144813,1754747452576,-460.0,0.00023013,2]
[378144814,1754747452586,-606.24,0.00023013,2]
[378144815,1754747452596,-460.0,0.00023013,2]
[378144816,1754747452746,-460.0,0.00023013,2]
[378144817,1754747452756,-519.3,0.00023013,2]
[378144818,1754747452766,-505.04,0.00023013,2]
[378144819,1754747452775,-460.0,0.00023013,2]
[378144820,1754747452785,-460.0,0.00023013,2]
[378144821,1754747452794,-460.0,0.00023013,2]
[378144822,1754747452803,-460.0,0.00023013,2]
[378144823,1754747452815,-460.0,0.00023013,2]
[378144824,1754747452824,-460.0,0.00023013,2]
[378144825,1754747452833,-224.37148239,0.00023013,2]
[378144826,1754747452842,-831.04,0.00023013,2]
[378144827,1754747452851,-213.2644599,0.00023013,2]
[378144828,1754747452860,-460.0,0.00023013,2]
[378144829,1754747452870,-759.18,0.00023013,2]
[378144830,1754747452879,-1151.85,0.00023013,2]
[378144831,1754747452890,-485.21,0.00023013,2]
[378144832,1754747452900,-596.04,0.00023013,2]
[378144833,1754747452909,-460.0,0.00023013,2]
[378144834,1754747452919,-1378.28,0.00023013,2]
[378144835,1754747452928,-460.0,0.00023013,2]
[378144836,1754747452938,-1165.64,0.00023013,2]
[378144837,1754747452947,-765.33,0.00023013,2]
[378144838,1754747452957,-460.0,0.00023013,2]
[378144839,1754747452967,-460.0,0.00023013,2]
[378144840,1754747452976,-460.0,0.00023013,2]
[378144841,1754747452987,-460.0,0.00023013,2]
[378144842,1754747452998,-460.0,0.00023013,2]
[378144843,1754747453008,-460.0,0.00023013,2]
[378144844,1754747453017,-1113.5,0.00023013,2]
[378144845,1754747453026,-460.0,0.00023013,2]
[378144846,1754747453036,-460.0,0.00023013,2]
[378144847,1754747453046,-575.37,0.00023013,2]
[378144848,1754747453057,-460.0,0.00023013,2]
[378144849,1754747453068,-2401.29,0.00023013,2]
[378144850,1754747453078,-460.0,0.00023013,2]
[378144851,1754747453088,-460.0,0.00023013,2]
[378144852,1754747453098,-1070.9,0.00023013,2]
[378144853,1754747453107,-460.0,0.00023013,2]
[378144854,1754747453117,-460.0,0.00023013,2]
[378144855,1754747453127,-168.0,0.00023014,7]
[378144856,1754747453137,-1200.0,0.00023021,2]
[378144857,1754747453146,-1500.0,0.00023068,2]
[378144858,1754747453156,-1500.0,0.00023068,2]
[378144859,1754747453165,-160.0,0.000231,2]
[378144860,1754747453174,-1948.81686302,0.00023114,2]
[378144861,1754747453184,-151.0,0.00023174,2]
[378144862,1754747453193,-151.0,0.00023174,2]
[378144863,1754747453202,-500.0,0.00023174,2]
[378144864,1754747453212,-151.15347236,0.00023174,2]
[378144865,1754747453221,-151.0,0.00023174,2]
[378144866,1754747453230,-500.0,0.00023174,2]
[378144867,1754747453239,-151.0,0.00023174,2]